{"text_format":"1","workbook":"xlsx","n_sheets":2,"sheets":["制御","入力-１原本"],"not_rendered":{"charts":0,"images":2,"macros":1,"external_links":0,"defined_names":0,"comments":0,"pivot_tables":0},"unopened":[],"bounds":{"document_bytes":16777216,"sheet_cells":100000,"rows_first":2000,"rows_last":500,"rows_between":2000,"halvings":0,"cell_chars":16384,"cell_head_chars":4096},"cells_cut":0,"cells_raw":0,"read":"whole","date_system":"1900"}

{"sheet":"制御","index":0,"n_rows":16,"n_cols":2,"rows_kept":16,"cut":false,"hidden":false,"merged":[]}
[]
["出力先ﾌｫﾙﾀﾞ名","D:\\"]
["ＣＳＶﾌｧｲﾙ名","RH11_S80_K01_H28○○○農協.TXT"]
[]
["出力ｼｰﾄ名","一括"]
[]
[]
[]
[]
[]
[]
[]
["【ＣＳＶ出力】"]
["　「出力シート名」に『一括』と入力した場合、このブックにある全シートを対象に一括出力を行います。"]
["　「出力シート名」に個々の『シート名』を入力した場合、そのシートデータを出力します。"]
["　　既に同名でＣＳＶファイルが存在する場合、上書きされます。"]

{"sheet":"入力-１原本","index":1,"n_rows":80,"n_cols":61,"rows_kept":80,"cut":false,"hidden":false,"merged":[[0,51,1,51],[0,52,1,53],[2,15,2,42],[4,0,4,3],[4,8,4,11],[4,12,4,34],[5,15,5,42],[7,12,8,14],[7,38,9,38],[0,17,1,46],[0,47,1,47],[8,46,9,47],[8,48,9,48],[10,0,10,1],[10,2,11,3],[10,4,10,9],[10,10,10,14],[10,15,10,19],[10,20,11,25],[10,26,11,29],[11,0,11,1],[0,48,1,49],[11,49,11,50],[11,38,11,40],[11,41,11,42],[11,46,11,47],[0,50,1,50],[12,0,12,1],[12,2,12,3],[12,4,12,9],[12,11,12,14],[12,15,12,19],[12,20,12,25],[12,26,12,29],[11,4,11,9],[11,11,11,14],[11,15,11,19],[17,47,19,47],[17,48,19,48],[17,49,19,49],[17,50,19,50],[14,12,14,14],[16,0,19,0],[16,1,16,7],[16,8,16,11],[16,12,18,12],[16,13,18,13],[17,51,19,51],[17,52,19,52],[17,53,19,53],[17,54,19,54],[17,55,19,55],[18,1,18,7],[18,8,18,11],[19,8,19,11],[16,56,19,56],[17,1,17,7],[17,8,17,11],[17,14,18,18],[17,23,18,27],[17,28,18,32],[17,33,18,37],[17,38,18,42],[17,43,18,44],[17,46,19,46],[16,19,18,22],[16,23,16,42],[16,43,16,44],[16,45,18,45],[16,46,16,50],[16,51,16,55],[20,33,20,37],[20,38,20,42],[20,43,20,44],[21,1,21,7],[21,8,21,11],[21,14,21,18],[21,19,21,22],[21,23,21,27],[21,28,21,32],[21,33,21,37],[20,1,20,7],[20,8,20,11],[20,14,20,18],[20,19,20,22],[20,23,20,27],[20,28,20,32],[21,38,21,42],[21,43,21,44],[22,1,22,7],[22,8,22,11],[22,14,22,18],[22,19,22,22],[22,23,22,27],[22,28,22,32],[22,33,22,37],[22,38,22,42],[22,43,22,44],[23,1,23,7],[23,8,23,11],[23,14,23,18],[23,19,23,22],[23,23,23,27],[23,28,23,32],[23,33,23,37],[23,38,23,42],[23,43,23,44],[24,33,24,37],[24,38,24,42],[24,43,24,44],[25,1,25,7],[25,8,25,11],[25,14,25,18],[25,19,25,22],[25,23,25,27],[25,28,25,32],[25,33,25,37],[24,1,24,7],[24,8,24,11],[24,14,24,18],[24,19,24,22],[24,23,24,27],[24,28,24,32],[25,38,25,42],[25,43,25,44],[26,1,26,7],[26,8,26,11],[26,14,26,18],[26,19,26,22],[26,23,26,27],[26,28,26,32],[26,33,26,37],[26,38,26,42],[26,43,26,44],[27,1,27,7],[27,8,27,11],[27,14,27,18],[27,19,27,22],[27,23,27,27],[27,28,27,32],[27,33,27,37],[27,38,27,42],[27,43,27,44],[28,33,28,37],[28,38,28,42],[28,43,28,44],[29,1,29,7],[29,8,29,11],[29,14,29,18],[29,19,29,22],[29,23,29,27],[29,28,29,32],[29,33,29,37],[28,1,28,7],[28,8,28,11],[28,14,28,18],[28,19,28,22],[28,23,28,27],[28,28,28,32],[29,38,29,42],[29,43,29,44],[30,1,30,7],[30,8,30,11],[30,14,30,18],[30,19,30,22],[30,23,30,27],[30,28,30,32],[30,33,30,37],[30,38,30,42],[30,43,30,44],[31,1,31,7],[31,8,31,11],[31,14,31,18],[31,19,31,22],[31,23,31,27],[31,28,31,32],[31,33,31,37],[31,38,31,42],[31,43,31,44],[32,33,32,37],[32,38,32,42],[32,43,32,44],[33,1,33,7],[33,8,33,11],[33,14,33,18],[33,19,33,22],[33,23,33,27],[33,28,33,32],[33,33,33,37],[32,1,32,7],[32,8,32,11],[32,14,32,18],[32,19,32,22],[32,23,32,27],[32,28,32,32],[33,38,33,42],[33,43,33,44],[34,1,34,7],[34,8,34,11],[34,14,34,18],[34,19,34,22],[34,23,34,27],[34,28,34,32],[34,33,34,37],[34,38,34,42],[34,43,34,44],[36,33,36,35],[36,36,36,37],[36,38,36,40],[35,43,35,45],[36,1,37,3],[36,4,37,6],[36,7,37,7],[36,8,37,11],[36,12,37,12],[36,13,37,13],[36,14,37,18],[36,19,37,22],[36,23,36,25],[35,1,35,3],[35,4,35,6],[35,8,35,11],[35,14,35,18],[35,19,35,22],[35,23,35,27],[35,28,35,32],[35,33,35,37],[35,38,35,42],[41,1,41,3],[42,1,42,3],[43,1,43,3],[36,56,37,56],[37,25,37,27],[37,30,37,32],[37,35,37,37],[37,40,37,42],[40,0,40,4],[36,50,37,50],[36,51,37,51],[36,52,37,52],[36,53,37,53],[36,54,37,54],[36,55,37,55],[36,41,36,42],[36,43,37,45],[36,46,37,46],[36,47,37,47],[36,48,37,48],[36,49,37,49],[36,26,36,27],[36,28,36,30],[36,31,36,32]]}
["様式第４号の別表１",null,null,null,null,null,null,null,null,null,null,null,null,null,null,null,null,"貸　付　対　象　者　別　貸　付　実　行　表",null,null,null,null,null,null,null,null,null,null,null,null,null,null,null,null,null,null,null,null,null,null,null,null,null,null,null,null,null,"（",null,null,"年度",null,"月貸付分）",null,null,null,null,null,null,"資金"]
[null,null,null,null,null,null,null,null,null,null,null,null,null,null,null,null,null,null,null,null,null,null,null,null,null,null,null,null,null,null,null,null,null,null,null,null,null,null,null,null,null,null,null,null,null,null,null,null,null,null,null,null,null,null,null,null,null,null,null,"区分","区分名"]
[null,null,null,null,null,null,null,null,null,null,null,null,null,null,null,null,null,null,null,null,null,null,null,null,null,null,null,null,null,null,null,null,null,null,null,null,null,null,null,null,null,null,null,null,null,null,null,null,null,null,null,null,null,null,null,null,null,null,null,0]
[null,null,null,null,null,null,null,null,null,null,null,null,null,null,null,null,null,null,null,null,null,null,null,null,null,null,null,null,null,null,null,null,null,null,null,null,null,null,null,null,null,null,null,null,null,null,null,null,null,null,null,null,null,null,null,null,null,null,null,80,"80:体質強化支援資金（酪農・肉用牛）"]
["入力－１",null,null,null,null,null,null,null,"資　金",null,null,null,null,null,null,null,null,null,null,null,null,null,null,null,null,null,null,null,null,null,null,null,null,null,null,null,null,null,null,null,null,null,null,null,null,null,null,null,null,null,null,null,null,null,null,null,null,null,null,81,"81:体質強化支援資金（養豚）"]
[]
[null,null,null,null,null,null,null,null,null,null,null,null,null,null,null,null,null,null,null,null,null,null,null,null,null,null,null,null,null,null,null,null,null,null,null,null,null,null,null,null,null,null,null,null,null,null,null,null,null,null,null,null,null,null,null,null,null,null,null,"都道府県"]
[null,null,null,null,null,null,null,null,null,null,null,null,"キーコード部",null,null,null,null,null,null,null,null,null,null,null,null,null,null,null,null,null,null,null,null,null,null,null,null,null,null,null,null,null,null,null,null,null,null,null,null,null,null,null,null,null,null,null,null,null,null,"区分","区分名"]
[null,null,null,null,null,null,null,null,null,null,null,null,null,null,null,null,null,null,null,null,null,null,null,null,null,null,null,null,null,null,null,null,null,null,null,null,null,null,null,null,null,null,null,null,null,null,null,null,"　枚のうち",null,null,null,null,null,null,null,null,null,null,0]
[null,null,null,null,null,null,null,null,null,null,null,null,null,null,null,null,null,null,null,null,null,null,null,null,null,null,null,null,null,null,null,null,null,null,null,null,null,null,null,null,null,null,null,null,null,null,null,null,null,null,null,null,null,null,null,null,null,null,null,1,"01:北海道"]
["データ",null,"都道府県",null,"北海道",null,null,null,null,null,"融資機関",null,null,null,null,"利子補給金",null,null,null,null,"貸付実行年月日",null,null,null,null,null,"約定償還日",null,null,null,null,null,null,null,null,null,null,null,null,null,null,null,null,null,null,null,null,null,null,null,null,null,null,null,null,null,null,null,null,2,"02:青森県"]
["区  分",null,null,null,"振興局",null,null,null,null,null,"コード","名称",null,null,null,"計算期間",null,null,null,null,null,null,null,null,null,null,null,null,null,null,null,null,null,null,null,null,null,null,null,null,null,null,null,null,null,null,null,null,"　枚目",null,null,null,null,null,null,null,null,null,null,3,"03:岩手県"]
[11,null,null,null,null,null,null,null,null,null,null,null,null,null,null,null,null,null,null,null,null,null,null,null,null,null,null,null,null,null,null,null,null,null,null,null,null,null,null,null,null,null,null,null,null,null,null,null,null,null,null,null,null,null,null,null,null,null,null,4,"04:宮城県"]
[null,null,null,null,null,null,null,null,null,null,null,null,null,null,null,null,null,null,null,null,null,null,null,null,null,null,null,null,null,null,null,null,null,null,null,null,null,null,null,null,null,null,null,null,null,null,null,null,null,null,null,null,null,null,null,null,null,null,null,5,"05:秋田県"]
[null,null,null,null,null,null,null,null,null,null,null,null,"データ部",null,null,null,null,null,null,null,null,null,null,null,null,null,null,null,null,null,null,null,null,null,null,null,null,null,null,null,null,null,null,null,null,null,null,null,null,null,null,null,null,null,null,null,null,null,null,6,"06:山形県"]
[null,null,null,null,null,null,null,null,null,null,null,null,null,null,null,null,null,null,null,null,null,null,null,null,null,null,null,null,null,null,null,null,null,null,null,null,null,null,null,null,null,null,null,null,null,null,null,null,null,null,null,null,null,null,null,null,null,null,null,7,"07:福島県"]
["処理区分",null,null,null,null,null,null,null,null,null,null,null,"コード\n経営の種類","現地\n確認\n頭数"," ",null,null,null,null,"貸付実行額 ",null,null,null,"貸　付　金　利",null,null,null,null,null,null,null,null,null,null,null,null,null,null,null,null,null,null,null,"償還\n期間",null,"据置期間","資金毎の借換時残高（千円）",null,null,null,null,"貸付実行額のうち資金毎の借換額（千円）",null,null,null,null,"備　考",null,null,8,"08:茨城県"]
[null,"貸付対象者\nコード",null,null,null,null,null,null,"貸付対象者\n氏名",null,null,null,null,null,"都道府県知事\nの\n貸付承認額",null,null,null,null,null,null,null,null,"貸付対象者\n負担利率",null,null,null,null,"中央畜産会\n利子補給率",null,null,null,null,"生産者団体等\n利子補給率",null,null,null,null,"計",null,null,null,null,"据置期間を含む",null,null,"農業近代化\n資金","公庫資金","その他制度\n資金","農協系統\n一般資金","一般\n金融機関\n資金","農業近代化\n資金","公庫資金","その他制度\n資金","農協系統\n一般資金","一般\n金融機関\n資金",null,null,null,9,"09:栃木県"]
[null,null,null,null,null,null,null,null,null,null,null,null,null,null,null,null,null,null,null,null,null,null,null,null,null,null,null,null,null,null,null,null,null,null,null,null,null,null,null,null,null,null,null,null,null,null,null,null,null,null,null,null,null,null,null,null,null,null,null,10,"10:群馬県"]
[null,null,null,null,null,null,null,null,null,null,null,null,null,"頭",null,null,null,null,"千円",null,null,null,"千円",null,null,null,null,"％",null,null,null,null,"％",null,null,null,null,"％",null,null,null,null,"％",null,"年","年",null,null,null,null,null,null,null,null,null,null,null,null,null,11,"11:埼玉県"]
[null,null,null,null,null,null,null,null,null,null,null,null,null,null,null,null,null,null,null,null,null,null,null,null,null,null,null,null,null,null,null,null,null,null,null,null,null,null,{"$f":"IF(SUM(X21:AL21)=0,\"\",SUM(X21:AL21))","v":""},null,null,null,null,null,null,null,null,null,null,null,null,null,null,null,null,null,"",null,null,12,"12:千葉県"]
[null,null,null,null,null,null,null,null,"",null,null,null,null,null,null,null,null,null,null,null,null,null,null,null,null,null,null,null,null,null,null,null,null,null,null,null,null,null,"",null,null,null,null,null,null,null,null,null,null,null,null,null,null,null,null,null,"",null,null,13,"13:東京都"]
[null,null,null,null,null,null,null,null,"",null,null,null,null,null,null,null,null,null,null,null,null,null,null,null,null,null,null,null,null,null,null,null,null,null,null,null,null,null,"",null,null,null,null,null,null,null,null,null,null,null,null,null,null,null,null,null,"",null,null,14,"14:神奈川県"]
[null,null,null,null,null,null,null,null,"",null,null,null,null,null,null,null,null,null,null,null,null,null,null,null,null,null,null,null,null,null,null,null,null,null,null,null,null,null,"",null,null,null,null,null,null,null,null,null,null,null,null,null,null,null,null,null,"",null,null,15,"15:新潟県"]
[null,null,null,null,null,null,null,null,"",null,null,null,null,null,null,null,null,null,null,null,null,null,null,null,null,null,null,null,null,null,null,null,null,null,null,null,null,null,"",null,null,null,null,null,null,null,null,null,null,null,null,null,null,null,null,null,"",null,null,16,"16:富山県"]
[null,null,null,null,null,null,null,null,"",null,null,null,null,null,null,null,null,null,null,null,null,null,null,null,null,null,null,null,null,null,null,null,null,null,null,null,null,null,"",null,null,null,null,null,null,null,null,null,null,null,null,null,null,null,null,null,"",null,null,17,"17:石川県"]
[null,null,null,null,null,null,null,null,"",null,null,null,null,null,null,null,null,null,null,null,null,null,null,null,null,null,null,null,null,null,null,null,null,null,null,null,null,null,"",null,null,null,null,null,null,null,null,null,null,null,null,null,null,null,null,null,"",null,null,18,"18:福井県"]
[null,null,null,null,null,null,null,null,"",null,null,null,null,null,null,null,null,null,null,null,null,null,null,null,null,null,null,null,null,null,null,null,null,null,null,null,null,null,"",null,null,null,null,null,null,null,null,null,null,null,null,null,null,null,null,null,"",null,null,19,"19:山梨県"]
[null,null,null,null,null,null,null,null,"",null,null,null,null,null,null,null,null,null,null,null,null,null,null,null,null,null,null,null,null,null,null,null,null,null,null,null,null,null,"",null,null,null,null,null,null,null,null,null,null,null,null,null,null,null,null,null,"",null,null,20,"20:長野県"]
[null,null,null,null,null,null,null,null,"",null,null,null,null,null,null,null,null,null,null,null,null,null,null,null,null,null,null,null,null,null,null,null,null,null,null,null,null,null,"",null,null,null,null,null,null,null,null,null,null,null,null,null,null,null,null,null,"",null,null,21,"21:岐阜県"]
[null,null,null,null,null,null,null,null,"",null,null,null,null,null,null,null,null,null,null,null,null,null,null,null,null,null,null,null,null,null,null,null,null,null,null,null,null,null,"",null,null,null,null,null,null,null,null,null,null,null,null,null,null,null,null,null,"",null,null,22,"22:静岡県"]
[null,null,null,null,null,null,null,null,"",null,null,null,null,null,null,null,null,null,null,null,null,null,null,null,null,null,null,null,null,null,null,null,null,null,null,null,null,null,"",null,null,null,null,null,null,null,null,null,null,null,null,null,null,null,null,null,"",null,null,23,"23:愛知県"]
[null,null,null,null,null,null,null,null,"",null,null,null,null,null,null,null,null,null,null,null,null,null,null,null,null,null,null,null,null,null,null,null,null,null,null,null,null,null,"",null,null,null,null,null,null,null,null,null,null,null,null,null,null,null,null,null,"",null,null,24,"24:三重県"]
[null,null,null,null,null,null,null,null,"",null,null,null,null,null,null,null,null,null,null,null,null,null,null,null,null,null,null,null,null,null,null,null,null,null,null,null,null,null,"",null,null,null,null,null,null,null,null,null,null,null,null,null,null,null,null,null,"",null,null,25,"25:滋賀県"]
[null,null,null,null,null,null,null,null,"",null,null,null,null,null,null,null,null,null,null,null,null,null,null,null,null,null,null,null,null,null,null,null,null,null,null,null,null,null,"",null,null,null,null,null,null,null,null,null,null,null,null,null,null,null,null,null,"",null,null,26,"26:京都府"]
[null,"小　計",null,null,{"$f":"IF(COUNT(B21:H35)=0,\"\",COUNT(B21:H35))","v":""},null,null,"人",null,null,null,null,null,null,{"$f":"IF(SUM(O21:S35)=0,\"\",SUM(O21:S35))","v":""},null,null,null,null,{"$f":"IF(SUM(T21:W35)=0,\"\",SUM(T21:W35))","v":""},null,null,null,null,null,null,null,null,null,null,null,null,null,null,null,null,null,null,null,null,null,null,null,null,null,null,{"$f":"IF(SUM(AU21:AU35)=0,\"\",SUM(AU21:AU35))","v":""},"","","","",{"$f":"IF(SUM(AZ21:AZ35)=0,\"\",SUM(AZ21:AZ35))","v":""},{"$f":"IF(SUM(BA21:BA35)=0,\"\",SUM(BA21:BA35))","v":""},{"$f":"IF(SUM(BB21:BB35)=0,\"\",SUM(BB21:BB35))","v":""},{"$f":"IF(SUM(BC21:BC35)=0,\"\",SUM(BC21:BC35))","v":""},{"$f":"IF(SUM(BD21:BD35)=0,\"\",SUM(BD21:BD35))","v":""},"",null,null,27,"27:大阪府"]
[null,"合　計",null,null,{"$f":"IF(SUM(E36)=0,\"\",SUM(E36))","v":""},null,null,"人",null,null,null,null,null,null,{"$f":"IF(SUM(O36)=0,\"\",SUM(O36))","v":""},null,null,null,null,{"$f":"IF(SUM(T36)=0,\"\",SUM(T36))","v":""},null,null,null,{"$f":"IF(MIN(X21:AB35)=0,\"\",MIN(X21:AB35))","v":""},null,null,"～",null,{"$f":"IF(MIN(AC21:AG35)=0,\"\",MIN(AC21:AG35))","v":""},null,null,"～",null,{"$f":"IF(MIN(AH21:AL35)=0,\"\",MIN(AH21:AL35))","v":""},null,null,"～",null,{"$f":"IF(MIN(AM21:AQ35)=0,\"\",MIN(AM21:AQ35))","v":""},null,null,"～",null,null,null,null,{"$f":"IF(SUM(AU36)=0,\"\",SUM(AU36))","v":""},"","","","","","","","","","",null,null,28,"28:兵庫県"]
[null,null,null,null,null,null,null,null,null,null,null,null,null,null,null,null,null,null,null,null,null,null,null,null,null,{"$f":"IF(MAX(X21:AB35)=0,\"\",MAX(X21:AB35))","v":""},null,null,null,null,{"$f":"IF(MAX(AC21:AG35)=0,\"\",MAX(AC21:AG35))","v":""},null,null,null,null,{"$f":"IF(MAX(AH21:AL35)=0,\"\",MAX(AH21:AL35))","v":""},null,null,null,null,{"$f":"IF(MAX(AM21:AQ35)=0,\"\",MAX(AM21:AQ35))","v":""},null,null,null,null,null,null,null,null,null,null,null,null,null,null,null,null,null,null,29,"29:奈良県"]
[null,null,null,null,null,"注）１．融資機関コードは、都道府県が定め中央畜産会に登録済みのコードを入力すること。",null,null,null,null,null,null,null,null,null,null,null,null,null,null,null,null,null,null,null,null,null,null,null,null,null,null,null,null,null,null,null,null,null,null,null,null,null,null,null,null,null,null,null,null,null,null,null,null,null,null,null,null,null,30,"30:和歌山県"]
[null,null,null,null,null,"　　 ２．貸付対象コードは、最大１０桁とし同一貸付実行日に複数貸付が存在する場合のみ頭１桁に１から連番を入力すること。なお、次年度以降の借入れについても、同一コードを使用すること。",null,null,null,null,null,null,null,null,null,null,null,null,null,null,null,null,null,null,null,null,null,null,null,null,null,null,null,null,null,null,null,null,null,null,null,null,null,null,null,null,null,null,null,null,null,null,null,null,null,null,null,null,null,31,"31:鳥取県"]
["当初貸付時入力不要",null,null,null,null,"　　 ３．貸付対象者氏名は、漢字等で１６文字以内に入力すること。",null,null,null,null,null,null,null,null,null,null,null,null,null,null,null,null,null,null,null,null,null,null,null,null,null,null,null,null,null,null,null,null,null,null,null,null,null,null,null,null,null,null,null,null,null,null,null,null,null,null,null,null,null,32,"32:島根県"]
[null,"○追加：１",null,null,null,"　　 ４．貸付金利は小数点以下３位までに入力すること。",null,null,null,null,null,null,null,null,null,null,null,null,null,null,null,null,null,null,null,null,null,null,null,null,null,null,null,null,null,null,null,null,null,null,null,null,null,null,null,null,null,null,null,null,null,null,null,null,null,null,null,null,null,33,"33:岡山県"]
[null,"○修正：２",null,null,null,"　　 ５．本表が２枚以上になるときは、各表ごとにキーコード部を必ず入力するとともに、小計をいれ最後の表には合計をいれること。",null,null,null,null,null,null,null,null,null,null,null,null,null,null,null,null,null,null,null,null,null,null,null,null,null,null,null,null,null,null,null,null,null,null,null,null,null,null,null,null,null,null,null,null,null,null,null,null,null,null,null,null,null,34,"34:広島県"]
[null,"○削除：３",null,null,null,null,null,null,null,null,null,null,null,null,null,null,null,null,null,null,null,null,null,null,null,null,null,null,null,null,null,null,null,null,null,null,null,null,null,null,null,null,null,null,null,null,null,null,null,null,null,null,null,null,null,null,null,null,null,35,"35:山口県"]
[null,null,null,null,null,null,null,null,null,null,null,null,null,null,null,null,null,null,null,null,null,null,null,null,null,null,null,null,null,null,null,null,null,null,null,null,null,null,null,null,null,null,null,null,null,null,null,null,null,null,null,null,null,null,null,null,null,null,null,36,"36:徳島県"]
[null,null,null,null,null,null,null,null,null,null,null,null,null,null,null,null,null,null,null,null,null,null,null,null,null,null,null,null,null,null,null,null,null,null,null,null,null,null,null,null,null,null,null,null,null,null,null,null,null,null,null,null,null,null,null,null,null,null,null,37,"37:香川県"]
[null,null,null,null,null,null,null,null,null,null,null,null,null,null,null,null,null,null,null,null,null,null,null,null,null,null,null,null,null,null,null,null,null,null,null,null,null,null,null,null,null,null,null,null,null,null,null,null,null,null,null,null,null,null,null,null,null,null,null,38,"38:愛媛県"]
[null,null,null,null,null,null,null,null,null,null,null,null,null,null,null,null,null,null,null,null,null,null,null,null,null,null,null,null,null,null,null,null,null,null,null,null,null,null,null,null,null,null,null,null,null,null,null,null,null,null,null,null,null,null,null,null,null,null,null,39,"39:高知県"]
[null,null,null,null,null,null,null,null,null,null,null,null,null,null,null,null,null,null,null,null,null,null,null,null,null,null,null,null,null,null,null,null,null,null,null,null,null,null,null,null,null,null,null,null,null,null,null,null,null,null,null,null,null,null,null,null,null,null,null,40,"40:福岡県"]
[null,null,null,null,null,null,null,null,null,null,null,null,null,null,null,null,null,null,null,null,null,null,null,null,null,null,null,null,null,null,null,null,null,null,null,null,null,null,null,null,null,null,null,null,null,null,null,null,null,null,null,null,null,null,null,null,null,null,null,41,"41:佐賀県"]
[null,null,null,null,null,null,null,null,null,null,null,null,null,null,null,null,null,null,null,null,null,null,null,null,null,null,null,null,null,null,null,null,null,null,null,null,null,null,null,null,null,null,null,null,null,null,null,null,null,null,null,null,null,null,null,null,null,null,null,42,"42:長崎県"]
[null,null,null,null,null,null,null,null,null,null,null,null,null,null,null,null,null,null,null,null,null,null,null,null,null,null,null,null,null,null,null,null,null,null,null,null,null,null,null,null,null,null,null,null,null,null,null,null,null,null,null,null,null,null,null,null,null,null,null,43,"43:熊本県"]
[null,null,null,null,null,null,null,null,null,null,null,null,null,null,null,null,null,null,null,null,null,null,null,null,null,null,null,null,null,null,null,null,null,null,null,null,null,null,null,null,null,null,null,null,null,null,null,null,null,null,null,null,null,null,null,null,null,null,null,44,"44:大分県"]
[null,null,null,null,null,null,null,null,null,null,null,null,null,null,null,null,null,null,null,null,null,null,null,null,null,null,null,null,null,null,null,null,null,null,null,null,null,null,null,null,null,null,null,null,null,null,null,null,null,null,null,null,null,null,null,null,null,null,null,45,"45:宮崎県"]
[null,null,null,null,null,null,null,null,null,null,null,null,null,null,null,null,null,null,null,null,null,null,null,null,null,null,null,null,null,null,null,null,null,null,null,null,null,null,null,null,null,null,null,null,null,null,null,null,null,null,null,null,null,null,null,null,null,null,null,46,"46:鹿児島県"]
[null,null,null,null,null,null,null,null,null,null,null,null,null,null,null,null,null,null,null,null,null,null,null,null,null,null,null,null,null,null,null,null,null,null,null,null,null,null,null,null,null,null,null,null,null,null,null,null,null,null,null,null,null,null,null,null,null,null,null,47,"47:沖縄県"]
[]
[null,null,null,null,null,null,null,null,null,null,null,null,null,null,null,null,null,null,null,null,null,null,null,null,null,null,null,null,null,null,null,null,null,null,null,null,null,null,null,null,null,null,null,null,null,null,null,null,null,null,null,null,null,null,null,null,null,null,null,"支庁（振興局）"]
[null,null,null,null,null,null,null,null,null,null,null,null,null,null,null,null,null,null,null,null,null,null,null,null,null,null,null,null,null,null,null,null,null,null,null,null,null,null,null,null,null,null,null,null,null,null,null,null,null,null,null,null,null,null,null,null,null,null,null,"区分","区分名"]
[null,null,null,null,null,null,null,null,null,null,null,null,null,null,null,null,null,null,null,null,null,null,null,null,null,null,null,null,null,null,null,null,null,null,null,null,null,null,null,null,null,null,null,null,null,null,null,null,null,null,null,null,null,null,null,null,null,null,null,0]
[null,null,null,null,null,null,null,null,null,null,null,null,null,null,null,null,null,null,null,null,null,null,null,null,null,null,null,null,null,null,null,null,null,null,null,null,null,null,null,null,null,null,null,null,null,null,null,null,null,null,null,null,null,null,null,null,null,null,null,1,"01:石狩振興局"]
[null,null,null,null,null,null,null,null,null,null,null,null,null,null,null,null,null,null,null,null,null,null,null,null,null,null,null,null,null,null,null,null,null,null,null,null,null,null,null,null,null,null,null,null,null,null,null,null,null,null,null,null,null,null,null,null,null,null,null,2,"02:空知総合振興局"]
[null,null,null,null,null,null,null,null,null,null,null,null,null,null,null,null,null,null,null,null,null,null,null,null,null,null,null,null,null,null,null,null,null,null,null,null,null,null,null,null,null,null,null,null,null,null,null,null,null,null,null,null,null,null,null,null,null,null,null,3,"03:上川総合振興局"]
[null,null,null,null,null,null,null,null,null,null,null,null,null,null,null,null,null,null,null,null,null,null,null,null,null,null,null,null,null,null,null,null,null,null,null,null,null,null,null,null,null,null,null,null,null,null,null,null,null,null,null,null,null,null,null,null,null,null,null,4,"04:後志総合振興局"]
[null,null,null,null,null,null,null,null,null,null,null,null,null,null,null,null,null,null,null,null,null,null,null,null,null,null,null,null,null,null,null,null,null,null,null,null,null,null,null,null,null,null,null,null,null,null,null,null,null,null,null,null,null,null,null,null,null,null,null,5,"05:檜山振興局"]
[null,null,null,null,null,null,null,null,null,null,null,null,null,null,null,null,null,null,null,null,null,null,null,null,null,null,null,null,null,null,null,null,null,null,null,null,null,null,null,null,null,null,null,null,null,null,null,null,null,null,null,null,null,null,null,null,null,null,null,6,"06:渡島総合振興局"]
[null,null,null,null,null,null,null,null,null,null,null,null,null,null,null,null,null,null,null,null,null,null,null,null,null,null,null,null,null,null,null,null,null,null,null,null,null,null,null,null,null,null,null,null,null,null,null,null,null,null,null,null,null,null,null,null,null,null,null,7,"07:胆振総合振興局"]
[null,null,null,null,null,null,null,null,null,null,null,null,null,null,null,null,null,null,null,null,null,null,null,null,null,null,null,null,null,null,null,null,null,null,null,null,null,null,null,null,null,null,null,null,null,null,null,null,null,null,null,null,null,null,null,null,null,null,null,8,"08:日高振興局"]
[null,null,null,null,null,null,null,null,null,null,null,null,null,null,null,null,null,null,null,null,null,null,null,null,null,null,null,null,null,null,null,null,null,null,null,null,null,null,null,null,null,null,null,null,null,null,null,null,null,null,null,null,null,null,null,null,null,null,null,9,"09:十勝総合振興局"]
[null,null,null,null,null,null,null,null,null,null,null,null,null,null,null,null,null,null,null,null,null,null,null,null,null,null,null,null,null,null,null,null,null,null,null,null,null,null,null,null,null,null,null,null,null,null,null,null,null,null,null,null,null,null,null,null,null,null,null,10,"10:釧路総合振興局"]
[null,null,null,null,null,null,null,null,null,null,null,null,null,null,null,null,null,null,null,null,null,null,null,null,null,null,null,null,null,null,null,null,null,null,null,null,null,null,null,null,null,null,null,null,null,null,null,null,null,null,null,null,null,null,null,null,null,null,null,11,"11:根室振興局"]
[null,null,null,null,null,null,null,null,null,null,null,null,null,null,null,null,null,null,null,null,null,null,null,null,null,null,null,null,null,null,null,null,null,null,null,null,null,null,null,null,null,null,null,null,null,null,null,null,null,null,null,null,null,null,null,null,null,null,null,12,"12:オホーツク総合振興局"]
[null,null,null,null,null,null,null,null,null,null,null,null,null,null,null,null,null,null,null,null,null,null,null,null,null,null,null,null,null,null,null,null,null,null,null,null,null,null,null,null,null,null,null,null,null,null,null,null,null,null,null,null,null,null,null,null,null,null,null,13,"13:宗谷総合振興局"]
[null,null,null,null,null,null,null,null,null,null,null,null,null,null,null,null,null,null,null,null,null,null,null,null,null,null,null,null,null,null,null,null,null,null,null,null,null,null,null,null,null,null,null,null,null,null,null,null,null,null,null,null,null,null,null,null,null,null,null,14,"14:留萌振興局"]
[]
[null,null,null,null,null,null,null,null,null,null,null,null,null,null,null,null,null,null,null,null,null,null,null,null,null,null,null,null,null,null,null,null,null,null,null,null,null,null,null,null,null,null,null,null,null,null,null,null,null,null,null,null,null,null,null,null,null,null,null,"計算期間"]
[null,null,null,null,null,null,null,null,null,null,null,null,null,null,null,null,null,null,null,null,null,null,null,null,null,null,null,null,null,null,null,null,null,null,null,null,null,null,null,null,null,null,null,null,null,null,null,null,null,null,null,null,null,null,null,null,null,null,null,"区分","区分名"]
[null,null,null,null,null,null,null,null,null,null,null,null,null,null,null,null,null,null,null,null,null,null,null,null,null,null,null,null,null,null,null,null,null,null,null,null,null,null,null,null,null,null,null,null,null,null,null,null,null,null,null,null,null,null,null,null,null,null,null,0]
[null,null,null,null,null,null,null,null,null,null,null,null,null,null,null,null,null,null,null,null,null,null,null,null,null,null,null,null,null,null,null,null,null,null,null,null,null,null,null,null,null,null,null,null,null,null,null,null,null,null,null,null,null,null,null,null,null,null,null,1,"1:１２月型"]
[null,null,null,null,null,null,null,null,null,null,null,null,null,null,null,null,null,null,null,null,null,null,null,null,null,null,null,null,null,null,null,null,null,null,null,null,null,null,null,null,null,null,null,null,null,null,null,null,null,null,null,null,null,null,null,null,null,null,null,2,"2:応答日型"]